bitfinex/quotes_BTCUSD_20250303
["timestamp","ask_amount","ask_price","bid_price","bid_amount"]
[1741001791707,1.04157959,92803.0,92802.0,0.0031703]
[1741001791993,1.04157959,92803.0,92802.0,0.0001703]
[1741001792241,1.04157959,92803.0,92802.0,0.0021703]
[1741001792853,1.04557959,92803.0,92802.0,0.0021703]
[1741001793472,1.09557959,92803.0,92802.0,0.0001703]
[1741001793679,1.14557959,92803.0,92802.0,0.0001703]
[1741001793885,0.65944734,92802.0,92801.0,0.0001703]
[1741001794112,0.78214734,92802.0,92801.0,0.0001703]
[1741001794245,0.79668819,92802.0,92801.0,0.0001703]
[1741001794445,0.80829776,92802.0,92801.0,0.0001703]
[1741001795368,0.80929776,92802.0,92801.0,0.0001703]
[1741001795770,0.81229776,92802.0,92801.0,0.0001703]
[1741001796014,0.81229776,92802.0,92779.0,0.0001703]
[1741001796015,0.73557134,92788.0,92779.0,0.0001703]
[1741001796193,1.13576437,92788.0,92787.0,0.0120433]
[1741001797608,0.78938534,92780.0,92779.0,0.0001703]
[1741001797810,0.86458534,92780.0,92779.0,0.0001703]
[1741001798011,1.21455906,92780.0,92779.0,0.0001703]
[1741001798210,1.21455906,92780.0,92771.0,0.0002297]
[1741001798211,0.75014019,92772.0,92771.0,0.0002297]
[1741001798450,0.80014019,92772.0,92771.0,5.94e-05]
[1741001798616,0.81164272,92772.0,92771.0,4e-07]
[1741001798836,0.828557,92772.0,92771.0,4e-07]
[1741001799176,0.83660442,92772.0,92771.0,4e-07]
[1741001799379,0.09781334,92737.0,92736.0,0.00111442]
[1741001799703,0.58366034,92737.0,92736.0,0.00111442]
[1741001799929,0.43326032,92737.0,92736.0,0.00111442]
[1741001800140,0.40236316,92737.0,92736.0,0.16286342]
[1741001800367,0.4001765,92737.0,92736.0,0.161749]
[1741001800529,0.4001765,92737.0,92731.0,0.0004]
[1741001800530,0.09781334,92736.0,92731.0,0.0004]
[1741001800728,0.05150941,92736.0,92731.0,0.0004]
[1741001800930,0.04781334,92736.0,92735.0,0.1619214]
[1741001801155,0.10915832,92736.0,92735.0,0.0001704]
[1741001801521,0.11066773,92736.0,92735.0,0.0001704]
[1741001801705,0.27241673,92736.0,92735.0,0.0001704]
[1741001801918,0.05,92725.0,92724.0,0.1573394]
[1741001802055,0.04781334,92714.0,92711.0,0.161793]
[1741001802288,0.04781334,92714.0,92713.0,0.161789]
[1741001803010,0.04781334,92714.0,92711.0,0.17191561]
[1741001803011,0.04781334,92712.0,92711.0,0.17191461]
[1741001803412,0.05912567,92712.0,92711.0,0.17191461]
[1741001803553,0.04781334,92712.0,92711.0,0.17191461]
[1741001803995,0.04781334,92712.0,92711.0,0.17391461]
[1741001804217,0.04781334,92712.0,92711.0,0.01212261]
[1741001804431,0.0591232,92712.0,92711.0,0.01012261]
[1741001804639,0.11063261,92712.0,92711.0,0.01012261]
[1741001804870,0.11063261,92712.0,92711.0,0.002]
[1741001804871,0.11163261,92712.0,92711.0,0.002]
[1741001805411,0.11163261,92712.0,92709.0,0.0001703]
[1741001805412,0.09781334,92710.0,92709.0,0.0001703]
[1741001805766,0.11059974,92710.0,92709.0,0.0001703]
[1741001807076,0.10909033,92710.0,92709.0,0.0001703]
[1741001807521,0.11009033,92710.0,92709.0,0.1619663]
[1741001807943,0.09981334,92710.0,92709.0,0.1639663]
[1741001808348,0.002,92710.0,92709.0,0.1639663]
[1741001809007,0.002,92710.0,92709.0,0.47850715]
[1741001809641,0.001,92710.0,92709.0,0.47850715]
[1741001810025,0.002,92710.0,92709.0,0.47850715]
[1741001810240,0.001,92710.0,92709.0,0.47650715]
[1741001810761,0.003,92710.0,92709.0,0.48350715]
[1741001810889,0.002,92710.0,92709.0,0.48350715]
[1741001811287,0.003,92710.0,92709.0,0.48350715]
[1741001813026,0.00150941,92742.0,92709.0,0.48350715]
[1741001813027,0.05,92742.0,92741.0,0.16174]
[1741001813391,0.10716368,92742.0,92741.0,0.16174]
[1741001813603,0.01691477,92742.0,92741.0,0.16174]
[1741001814206,0.06691477,92742.0,92741.0,0.16574]
[1741001814407,0.06691477,92742.0,92741.0,0.16674]
[1741001814572,0.06691477,92742.0,92741.0,0.16574]
[1741001814769,0.06691477,92742.0,92741.0,0.16174]
[1741001815021,0.06691477,92742.0,92741.0,0.16374]
[1741001815731,0.09781334,92742.0,92741.0,0.16374]
[1741001816288,0.09781334,92742.0,92741.0,0.1697961]
[1741001816782,0.09781334,92742.0,92741.0,0.0080561]
[1741001817189,0.10718201,92742.0,92741.0,0.0080561]
[1741001818634,0.26892101,92742.0,92741.0,0.0080561]
[1741001818848,0.12409711,92742.0,92741.0,0.0080561]
[1741001819045,0.12560652,92742.0,92741.0,0.0080561]
[1741001819250,0.12409711,92742.0,92741.0,0.0080561]
[1741001819819,0.28583611,92742.0,92741.0,5.61e-05]
[1741001820022,0.28583611,92742.0,92741.0,0.0030561]
[1741001820361,0.28583611,92742.0,92741.0,0.0010561]
[1741001820775,0.28583611,92742.0,92741.0,0.0040561]
[1741001820980,0.12409711,92742.0,92741.0,0.0040561]
[1741001821223,0.12560652,92742.0,92741.0,0.0030561]
[1741001821584,0.12560652,92742.0,92741.0,0.1647961]
[1741001821784,0.07628377,92742.0,92741.0,0.1647961]
[1741001821993,0.11472844,92742.0,92741.0,0.0030561]
[1741001822424,0.28733542,92742.0,92741.0,0.0030561]
[1741001822602,0.28582601,92742.0,92741.0,0.0030561]
[1741001822753,0.6199576,92742.0,92741.0,0.0030561]
[1741001822957,0.6199576,92742.0,92741.0,5.61e-05]
[1741001823168,0.6199576,92742.0,92741.0,0.0060561]
[1741001823364,0.6962576,92742.0,92741.0,0.0070561]
[1741001823749,0.6962576,92742.0,92741.0,0.0060561]
[1741001824192,0.6962576,92742.0,92741.0,0.0080561]
[1741001824900,0.9962576,92742.0,92741.0,5.61e-05]
[1741001825697,0.9793425,92742.0,92741.0,5.61e-05]
[1741001826324,0.9793425,92742.0,92741.0,0.0030561]
[1741001826643,0.96931091,92742.0,92741.0,0.0030561]
[1741001826970,0.96931091,92742.0,92741.0,5.61e-05]
[1741001827144,0.97996651,92742.0,92741.0,0.0040561]
[1741001827354,0.43161291,92742.0,92741.0,0.1657961]
[1741001827585,0.43161291,92742.0,92741.0,0.0040561]
[1741001827802,0.59335191,92742.0,92741.0,0.0040561]
[1741001828798,0.43161291,92742.0,92741.0,0.0040561]
[1741001829008,0.44852877,92742.0,92741.0,0.0040561]
[1741001829888,0.61026777,92742.0,92741.0,0.0040561]
[1741001830292,0.44852877,92742.0,92741.0,0.0040561]
[1741001830502,0.61026777,92742.0,92741.0,0.0040561]
[1741001831169,0.44852877,92742.0,92741.0,0.0040561]
[1741001831615,0.44852877,92742.0,92741.0,0.1657961]
[1741001831840,0.44852877,92742.0,92741.0,0.0040561]
[1741001832422,0.44852877,92742.0,92741.0,0.1657961]
[1741001832614,0.44852877,92742.0,92741.0,0.0040561]
[1741001832791,0.4391702,92742.0,92741.0,0.0040561]
[1741001832969,0.44852647,92742.0,92741.0,0.0040561]
[1741001833175,0.35071313,92742.0,92741.0,0.1657961]
[1741001833381,0.02661313,92742.0,92741.0,0.1657961]
[1741001833783,0.01725686,92742.0,92741.0,0.1657961]
[1741001834424,0.01725686,92742.0,92741.0,0.17602295]
[1741001835009,0.01725686,92742.0,92741.0,0.17702295]
[1741001835471,0.01725686,92742.0,92741.0,0.20523245]
[1741001835937,0.01725686,92742.0,92741.0,0.20923245]
[1741001836167,0.01725686,92742.0,92741.0,0.20423245]
[1741001836375,0.01725686,92742.0,92741.0,0.21123245]
[1741001836525,0.000341,92742.0,92741.0,0.5327733]
[1741001836748,0.000341,92742.0,92741.0,0.5787733]
[1741001839756,0.37191334,92778.0,92777.0,0.161678]
[1741001839999,0.04781334,92778.0,92777.0,0.161678]
[1741001840196,0.06472366,92778.0,92777.0,0.161678]
[1741001840709,0.11472366,92778.0,92777.0,0.161678]
[1741001840988,0.06472366,92778.0,92777.0,0.162678]
[1741001841197,0.11472366,92778.0,92777.0,0.162678]
[1741001841324,0.11472366,92778.0,92777.0,0.001]
[1741001841733,0.12248563,92778.0,92777.0,0.001]
[1741001841960,0.12248563,92778.0,92777.0,0.004]
[1741001842135,0.12399504,92778.0,92777.0,0.004]
[1741001842860,0.12399504,92778.0,92742.0,0.19298295]
[1741001843021,0.05,92767.0,92743.0,0.00262417]
[1741001843220,0.05,92767.0,92766.0,0.161697]
[1741001843422,0.09781334,92771.0,92750.0,0.18847971]
[1741001843625,0.01691102,92767.0,92766.0,0.161697]
[1741001843820,0.06691102,92767.0,92766.0,0.161697]
[1741001844673,0.01691102,92767.0,92766.0,0.161697]
[1741001845659,0.05,92768.0,92764.0,0.215598]
[1741001845983,0.05,92768.0,92767.0,0.161695]
[1741001847068,0.04781334,92773.0,92767.0,0.161695]
[1741001847273,0.04781334,92794.0,92768.0,0.00150907]
[1741001847483,0.04781334,92797.0,92789.0,0.161657]
[1741001847689,0.09781334,92802.0,92801.0,0.161636]
[1741001847895,0.04781334,92797.0,92766.0,0.43337466]
[1741001848102,0.05,92793.0,92788.0,0.161657]
[1741001848249,0.04781334,92787.0,92758.0,0.00218666]
[1741001848410,0.04781334,92782.0,92765.0,0.292497]
[1741001848623,0.04781334,92778.0,92767.0,0.215591]
[1741001848841,0.04781334,92771.0,92770.0,0.161688]
[1741001849072,0.05,92770.0,92767.0,0.003]
[1741001849246,0.05,92770.0,92765.0,0.161697]
[1741001849459,0.05,92773.0,92772.0,0.161686]
[1741001849675,0.3741,92785.0,92784.0,0.161665]
[1741001849954,0.3241,92785.0,92782.0,0.215557]
[1741001850337,0.34100874,92785.0,92784.0,0.161665]
[1741001850615,0.43882208,92785.0,92784.0,0.161665]
[1741001850795,0.38882208,92785.0,92784.0,0.161665]
[1741001850999,0.34100874,92785.0,92784.0,0.161665]
[1741001851546,0.39100874,92785.0,92784.0,0.161665]
[1741001852504,0.39100874,92785.0,92784.0,0.168665]
[1741001852750,0.39100874,92785.0,92784.0,0.007]
[1741001852948,0.39100874,92785.0,92784.0,0.013]
[1741001853360,0.39100874,92785.0,92784.0,0.174665]
[1741001853568,0.39100874,92785.0,92784.0,0.167665]
[1741001853973,0.43882208,92785.0,92784.0,0.006]
[1741001854173,0.60048608,92785.0,92784.0,0.006]
[1741001854839,0.43882208,92785.0,92784.0,0.013]
[1741001855038,0.60048608,92785.0,92784.0,0.013]
[1741001855284,0.43882208,92785.0,92784.0,0.006]
[1741001855630,0.05,92776.0,92771.0,0.161687]
[1741001856116,0.05,92774.0,92769.0,0.161691]
[1741001856405,0.05,92774.0,92771.0,0.161688]
[1741001856799,0.05,92774.0,92771.0,0.006]
[1741001857043,0.05,92774.0,92771.0,0.009]
[1741001857220,0.09781334,92772.0,92771.0,0.009]
[1741001857396,0.25949934,92772.0,92771.0,0.009]
[1741001857596,0.2658976,92772.0,92771.0,0.009]
[1741001858215,0.3443976,92772.0,92771.0,0.003]
[1741001858382,0.04781334,92755.0,92752.0,0.03213896]
[1741001858582,0.05,92753.0,92752.0,0.03213896]
[1741001859005,0.05637637,92753.0,92752.0,0.03213896]
[1741001859217,0.05637637,92753.0,92752.0,0.19385996]
[1741001859421,0.05637637,92753.0,92752.0,0.03213896]
[1741001859578,0.05637637,92753.0,92749.0,0.215634]
[1741001859579,0.05,92753.0,92750.0,0.161723]
[1741001859782,0.05,92753.0,92744.0,0.215646]
[1741001860001,0.05,92753.0,92752.0,0.168721]
[1741001860221,0.05,92753.0,92752.0,0.007]
[1741001860573,0.05636716,92753.0,92752.0,0.007]
[1741001860764,0.07327991,92753.0,92752.0,0.168721]
[1741001860973,0.02327991,92753.0,92752.0,0.168721]
[1741001861198,0.01691275,92753.0,92752.0,0.1687771]
[1741001861396,0.01691275,92753.0,92752.0,0.1617771]
[1741001861701,0.01791275,92753.0,92752.0,0.1687771]
[1741001862181,0.01691275,92753.0,92752.0,0.1687771]
[1741001862611,0.06791275,92753.0,92752.0,0.1757771]
[1741001864659,0.051,92753.0,92752.0,0.1757771]
[1741001865266,0.051,92753.0,92752.0,0.20798003]
[1741001865713,0.001,92753.0,92752.0,0.20798003]
[1741001866095,0.001,92753.0,92752.0,0.1757771]
[1741001866919,0.001,92753.0,92752.0,0.20797606]
[1741001869686,0.001,92753.0,92752.0,0.28677606]
[1741001876057,0.001,92753.0,92752.0,0.20797606]
[1741001876377,0.001,92753.0,92752.0,0.04625506]
[1741001876693,0.73891234,92753.0,92752.0,0.04625506]
[1741001876878,0.7939224,92753.0,92752.0,0.04625506]
[1741001877075,0.7939224,92753.0,92752.0,0.0140561]
[1741001877257,1.094263,92753.0,92752.0,0.0140561]
[1741001877425,1.093263,92753.0,92752.0,0.0070561]
[1741001877624,1.10366176,92753.0,92752.0,0.0070561]
[1741001877821,1.10366176,92753.0,92752.0,0.0030561]
[1741001878303,1.10366176,92753.0,92752.0,5.61e-05]
[1741001878506,1.11490765,92753.0,92752.0,5.61e-05]
[1741001878686,1.11490765,92753.0,92752.0,0.0020561]
[1741001879123,1.13182377,92753.0,92752.0,0.0020561]
[1741001881783,0.65974601,92753.0,92752.0,0.0020561]
[1741001882009,0.56184601,92753.0,92752.0,0.0020561]
[1741001882166,0.48891267,92753.0,92752.0,0.0020561]
[1741001882376,0.34846678,92753.0,92752.0,0.1637771]
[1741001882573,0.02436678,92753.0,92752.0,0.1637771]
[1741001882873,0.02436678,92753.0,92752.0,0.0020561]
[1741001883019,0.01725672,92753.0,92752.0,0.0020561]
[1741001883222,0.02314872,92753.0,92752.0,0.0020561]
[1741001883476,0.01725672,92753.0,92752.0,5.61e-05]
[1741001883667,0.35829847,92753.0,92752.0,5.61e-05]
[1741001883864,0.36266869,92753.0,92752.0,0.0030561]
[1741001884423,0.68676869,92753.0,92752.0,5.61e-05]
[1741001884607,0.73346869,92753.0,92752.0,0.0070561]
[1741001884831,1.03346869,92753.0,92752.0,0.0070561]
[1741001885032,1.03346869,92753.0,92752.0,0.0010561]
[1741001885480,1.03346869,92753.0,92752.0,0.0070561]
[1741001885683,1.01655257,92753.0,92752.0,0.0060561]
[1741001886082,1.01655257,92753.0,92752.0,0.0090561]
[1741001886702,1.01655257,92753.0,92752.0,0.0030561]
[1741001886856,0.96655257,92753.0,92752.0,0.0030561]
[1741001887064,0.96655257,92753.0,92752.0,0.0050561]
[1741001887404,1.01655257,92753.0,92752.0,0.0050561]
[1741001887763,1.01655257,92753.0,92752.0,0.0020561]
[1741001888909,1.0334694,92753.0,92752.0,0.0020561]
[1741001890643,1.0334694,92753.0,92752.0,5.61e-05]
[1741001890845,1.09801025,92753.0,92752.0,5.61e-05]
[1741001891002,1.10401025,92753.0,92752.0,0.0010561]
[1741001891215,1.10401025,92753.0,92752.0,0.0020561]
[1741001891420,1.09801025,92753.0,92752.0,0.0010561]
[1741001891815,1.10401025,92753.0,92752.0,0.0020561]
[1741001893711,0.9894694,92753.0,92752.0,0.0020561]
[1741001893918,1.0894694,92753.0,92752.0,0.0020561]
[1741001894132,1.0394694,92753.0,92752.0,0.0020561]
[1741001894866,0.9894694,92753.0,92752.0,0.0020561]
[1741001895070,1.0394694,92753.0,92752.0,0.0020561]
[1741001895315,0.9894694,92753.0,92752.0,0.0020561]
[1741001895520,1.0394694,92753.0,92752.0,0.0010561]
[1741001895721,0.9894694,92753.0,92752.0,0.0010561]
[1741001895924,1.01677606,92753.0,92752.0,0.0010561]
[1741001896138,1.0585894,92753.0,92752.0,5.61e-05]
[1741001896356,1.1085894,92753.0,92752.0,5.61e-05]
[1741001897250,1.1125894,92753.0,92752.0,5.61e-05]
[1741001897495,1.1085894,92753.0,92752.0,5.61e-05]
[1741001897837,1.0615894,92753.0,92752.0,5.61e-05]
[1741001898109,1.0148894,92753.0,92752.0,5.61e-05]
[1741001898286,1.0648894,92753.0,92752.0,5.61e-05]
[1741001898470,1.07613389,92753.0,92752.0,5.61e-05]
[1741001898930,1.05921706,92753.0,92752.0,5.61e-05]
[1741001901786,1.07613475,92753.0,92752.0,5.61e-05]
[1741001902192,1.02613475,92753.0,92752.0,5.61e-05]
[1741001902749,1.07613475,92753.0,92752.0,5.61e-05]
[1741001903428,1.07609475,92753.0,92752.0,5.61e-05]
[1741001907092,1.00101475,92753.0,92752.0,5.61e-05]
[1741001907305,0.83437575,92753.0,92752.0,5.61e-05]
[1741001907523,0.78656241,92753.0,92752.0,5.61e-05]
[1741001907832,0.99609475,92753.0,92752.0,5.61e-05]
[1741001908286,0.94609475,92753.0,92752.0,5.61e-05]
[1741001908493,0.99609475,92753.0,92752.0,5.61e-05]
[1741001910552,0.83437575,92753.0,92752.0,5.61e-05]
[1741001910996,0.34456472,92753.0,92752.0,5.61e-05]
[1741001911195,0.33332023,92753.0,92752.0,0.1617771]
[1741001911899,0.0003406,92753.0,92752.0,0.1617771]
[1741001912122,0.0003406,92753.0,92752.0,0.1657771]
[1741001912299,0.0003406,92753.0,92752.0,0.17828258]
[1741001912609,0.0503406,92753.0,92752.0,0.17628258]
[1741001912804,0.0503406,92753.0,92752.0,0.17428258]
[1741001912985,0.0503406,92753.0,92752.0,0.1617771]
[1741001913218,0.0503406,92753.0,92752.0,0.1687771]
[1741001914369,0.0003406,92753.0,92752.0,0.1687771]
[1741001914651,0.0503406,92753.0,92752.0,0.26286328]
[1741001915163,0.0503406,92753.0,92752.0,0.26686328]
[1741001917728,0.0003406,92753.0,92752.0,0.26686328]
[1741001917929,0.0503406,92753.0,92752.0,0.26686328]
[1741001918528,0.0003406,92753.0,92752.0,0.26686328]
[1741001918742,0.0003406,92753.0,92752.0,0.28140413]
[1741001919326,0.0003406,92753.0,92752.0,0.27440413]
[1741001919830,0.0003406,92753.0,92752.0,0.27040413]
[1741001920254,0.0003406,92753.0,92752.0,0.27740413]
[1741001920823,0.0003406,92753.0,92752.0,0.28440413]
[1741001921228,0.0003406,92753.0,92752.0,0.27740413]
[1741001921545,0.0003406,92753.0,92752.0,0.28440413]
[1741001928402,0.0003406,92753.0,92752.0,0.28659079]
[1741001929159,6e-07,92753.0,92752.0,0.58659079]
[1741001929358,0.0003406,92785.0,92784.0,0.161665]
[1741001930130,0.0003406,92785.0,92784.0,0.17453194]
[1741001930568,0.01724974,92785.0,92784.0,0.17458804]
[1741001931082,0.01724974,92785.0,92784.0,0.17958804]
[1741001931388,0.06724974,92785.0,92784.0,0.0050561]
[1741001931591,0.0738837,92785.0,92784.0,5.61e-05]
[1741001931967,0.0738837,92785.0,92784.0,0.0070561]
[1741001932169,0.06724974,92785.0,92784.0,0.0070561]
[1741001932349,0.07389579,92785.0,92784.0,0.0070561]
[1741001932553,0.07389579,92785.0,92784.0,0.0110561]
[1741001934663,0.23555979,92785.0,92784.0,0.0110561]
[1741001934860,0.07389579,92785.0,92784.0,0.0110561]
[1741001935723,0.05698665,92785.0,92784.0,0.0110561]
[1741001938407,0.00698665,92785.0,92784.0,0.1727211]
[1741001938869,0.05698665,92785.0,92784.0,0.1727211]
[1741001939025,0.06724969,92785.0,92784.0,0.1727211]
[1741001939221,0.06724969,92785.0,92784.0,0.0110561]
[1741001939627,0.06724969,92785.0,92784.0,0.1727211]
[1741001939830,0.0738947,92785.0,92784.0,0.1727211]
[1741001940054,0.06724969,92785.0,92784.0,0.1727211]
[1741001940633,0.06724969,92785.0,92784.0,0.0110561]
[1741001941046,0.0738967,92785.0,92784.0,0.0110561]
[1741001941247,0.06724969,92785.0,92784.0,0.0110561]
[1741001941455,0.07390951,92785.0,92784.0,0.0110561]
[1741001942039,0.06724969,92785.0,92784.0,0.0110561]
[1741001942241,0.07391023,92785.0,92784.0,0.0110561]
[1741001942442,0.07391023,92785.0,92784.0,0.1727211]
[1741001942705,0.06724969,92785.0,92784.0,0.0110561]
[1741001943807,0.06724969,92785.0,92784.0,0.1727211]
[1741001944008,0.07391023,92785.0,92784.0,0.1727211]
[1741001944208,0.06724969,92785.0,92784.0,0.1727211]
[1741001944953,0.06724969,92785.0,92784.0,0.0110561]
[1741001945146,0.06724969,92785.0,92784.0,0.1727211]
[1741001945453,0.06724969,92785.0,92784.0,0.0110561]
[1741001945663,0.22891369,92785.0,92784.0,0.0110561]
[1741001945809,0.2120046,92785.0,92784.0,0.0110561]
[1741001946151,0.21867287,92785.0,92784.0,0.0110561]
[1741001946953,0.34288621,92785.0,92784.0,0.0110561]
[1741001948635,0.64288621,92785.0,92784.0,0.0110561]
[1741001949026,0.64288621,92785.0,92784.0,0.0040561]
[1741001949209,0.65979856,92785.0,92784.0,0.0040561]
[1741001949513,1.05885856,92785.0,92784.0,0.0020561]
[1741001949860,1.05885856,92785.0,92784.0,5.61e-05]
[1741001950058,1.05885856,92785.0,92784.0,0.0020561]
[1741001950059,0.49938122,92785.0,92784.0,0.0020561]
[1741001950415,0.47298122,92785.0,92784.0,0.0020561]
[1741001950615,0.52079456,92785.0,92784.0,0.0020561]
[1741001950879,0.60749856,92785.0,92784.0,0.0020561]
[1741001951614,0.60749856,92785.0,92784.0,5.61e-05]
[1741001951928,0.60749856,92785.0,92784.0,0.0070561]
[1741001952315,0.60749856,92785.0,92784.0,0.0110561]
[1741001952515,0.44583456,92785.0,92784.0,0.0110561]
[1741001952836,0.39802122,92785.0,92784.0,0.0110561]
[1741001953235,0.44583456,92785.0,92784.0,0.0110561]
[1741001954049,0.39802122,92785.0,92784.0,0.0110561]
[1741001954226,0.44583456,92785.0,92784.0,0.0110561]
[1741001954765,0.60749856,92785.0,92784.0,0.0110561]
[1741001956124,0.61874057,92785.0,92784.0,0.0110561]
[1741001958833,0.45707657,92785.0,92784.0,0.0110561]
[1741001959059,0.60182822,92785.0,92784.0,0.0110561]
[1741001960967,0.67922822,92785.0,92784.0,0.0110561]
[1741001961167,0.97922822,92785.0,92784.0,0.0110561]
[1741001961348,1.02592822,92785.0,92784.0,0.0070561]
[1741001961944,1.04151505,92785.0,92784.0,0.0070561]
[1741001962150,1.04151505,92785.0,92784.0,5.61e-05]
[1741001962525,1.04151505,92785.0,92784.0,0.0020561]
[1741001962701,1.04233694,92785.0,92784.0,0.0020561]
[1741001963008,1.04233694,92785.0,92784.0,5.61e-05]
[1741001963009,0.99233694,92785.0,92784.0,5.61e-05]
[1741001963181,0.99233694,92785.0,92784.0,0.0020561]
[1741001963382,0.98603428,92785.0,92784.0,0.0020561]
[1741001963736,0.98729143,92785.0,92784.0,0.0020561]
[1741001963906,0.98339938,92785.0,92784.0,0.0020561]
[1741001964211,1.03339938,92785.0,92784.0,0.0020561]
[1741001964553,1.02923372,92785.0,92784.0,0.0020561]
[1741001964972,1.01232057,92785.0,92784.0,0.0020561]
[1741001966133,1.01232057,92785.0,92754.0,0.215623]
[1741001966134,0.85065657,92785.0,92756.0,0.1367681]
[1741001966343,0.85065657,92785.0,92734.0,0.215668]
[1741001966344,0.05,92757.0,92734.0,0.215668]
[1741001966536,0.05,92757.0,92739.0,0.215658]
[1741001966749,0.00548703,92756.0,92749.0,0.01454085]
[1741001966931,0.00548703,92756.0,92750.0,0.01454085]
[1741001967316,0.00548703,92756.0,92751.0,0.01454085]
[1741001967665,0.00011968,92756.0,92750.0,0.01454085]
[1741001967893,0.00011968,92756.0,92719.0,0.323557]
[1741001967894,0.05,92754.0,92726.0,0.00218666]
[1741001968027,0.211718,92754.0,92734.0,0.21567]
[1741001968229,0.21721103,92754.0,92742.0,0.01262961]
[1741001968929,0.21721103,92754.0,92753.0,0.0071703]
[1741001969313,0.05549303,92754.0,92753.0,0.0141703]
[1741001969516,0.05549303,92754.0,92753.0,0.1758893]
[1741001970003,0.05,92754.0,92753.0,0.0141703]
[1741001970320,0.05616414,92754.0,92753.0,0.0141703]
[1741001971549,0.05,92754.0,92753.0,0.0141703]
[1741001972065,0.05615439,92754.0,92753.0,0.0141703]
[1741001972634,0.05,92754.0,92753.0,0.0141703]
[1741001972833,0.05615639,92754.0,92753.0,0.0141703]
[1741001978147,0.21787439,92754.0,92753.0,0.0141703]
[1741001979498,0.05615639,92754.0,92753.0,0.0141703]
[1741001979985,0.21787439,92754.0,92753.0,0.0141703]
[1741001981169,0.05615639,92754.0,92753.0,0.0141703]
[1741001981594,0.23478857,92754.0,92753.0,0.0141703]
[1741001981956,0.07307057,92754.0,92753.0,0.0141703]
[1741001982364,0.23478857,92754.0,92753.0,0.0141703]
[1741001983264,0.07307057,92754.0,92753.0,0.0141703]
[1741001983693,0.23478857,92754.0,92753.0,0.0141703]
[1741001983900,0.07307057,92754.0,92753.0,0.0141703]
[1741001985722,0.05615639,92754.0,92753.0,0.0141703]
[1741001985938,0.00615639,92754.0,92753.0,0.0141703]
[1741001986110,0.05615639,92754.0,92753.0,0.0141703]
[1741001988838,0.07307053,92754.0,92753.0,0.0141703]
[1741001993352,0.23478853,92754.0,92753.0,0.0141703]
[1741001993546,0.07307053,92754.0,92753.0,0.0141703]
[1741001993876,0.23478853,92754.0,92753.0,0.0141703]
[1741001994754,0.07307053,92754.0,92753.0,0.0141703]
[1741001995176,0.07307053,92754.0,92753.0,0.0071703]
[1741001995345,0.07307053,92754.0,92753.0,0.0001703]
[1741001995545,0.07307053,92754.0,92753.0,0.0131703]
[1741001995792,0.05615639,92754.0,92753.0,0.0131703]
[1741001996198,0.05615639,92754.0,92753.0,0.0061703]
[1741001996354,0.05615639,92754.0,92753.0,0.1678893]
[1741001996557,0.05615639,92754.0,92753.0,0.1748893]
[1741001996787,0.05,92754.0,92753.0,0.1748893]
[1741001996958,0.05,92754.0,92753.0,0.0131703]
[1741001997292,0.05,92754.0,92753.0,0.1748893]
[1741001997529,0.05,92754.0,92753.0,0.0131703]
[1741001997732,0.05,92754.0,92753.0,0.1748893]
[1741001998073,0.05,92754.0,92753.0,0.0131703]
[1741002000448,0.0669138,92754.0,92753.0,0.0131703]
[1741002001231,0.07284667,92754.0,92753.0,0.0131703]
[1741002001442,0.0669138,92754.0,92753.0,0.0131703]
[1741002002523,0.07284867,92754.0,92753.0,0.0131703]
[1741002005687,0.05593487,92754.0,92753.0,0.0131703]
[1741002007815,0.05,92754.0,92753.0,0.0131703]
[1741002008019,0.05593087,92754.0,92753.0,0.0131703]
[1741002008644,0.05593087,92754.0,92753.0,0.03339375]
[1741002008966,0.07284643,92754.0,92753.0,0.03339375]
[1741002012871,0.06691356,92754.0,92753.0,0.03339375]
[1741002013107,0.05,92754.0,92753.0,0.03339375]
[1741002013340,0.05591837,92754.0,92753.0,0.03339375]
[1741002016200,0.05591837,92754.0,92753.0,0.0131703]
[1741002018881,0.05591837,92754.0,92753.0,0.03339974]
[1741002020290,0.07283201,92754.0,92753.0,0.03339974]
[1741002020490,0.07283201,92754.0,92753.0,0.0131703]
[1741002025465,0.06691364,92754.0,92753.0,0.1748893]
[1741002025669,0.05,92754.0,92753.0,0.1748893]
[1741002026044,0.05,92754.0,92753.0,0.0131703]
[1741002026453,0.00046028,92756.0,92755.0,0.17625685]
[1741002027565,0.00046028,92756.0,92755.0,0.18325685]
[1741002027789,0.00046028,92756.0,92755.0,0.20346445]
[1741002028335,0.00046028,92756.0,92755.0,0.20846445]
[1741002030942,0.00046028,92756.0,92755.0,0.1939236]
[1741002031158,0.02332199,92756.0,92755.0,0.1939236]
[1741002031358,0.01737263,92756.0,92755.0,0.1939236]
[1741002032137,0.01737263,92756.0,92755.0,0.20846445]
[1741002032506,0.01737263,92756.0,92755.0,0.28596445]
[1741002033079,0.00046028,92756.0,92755.0,0.28596445]
[1741002034630,0.00046028,92756.0,92755.0,0.63126445]
[1741002034829,0.00046028,92756.0,92755.0,0.63345111]
[1741002035630,0.00046028,92756.0,92755.0,0.62145111]
[1741002035778,0.00046028,92756.0,92755.0,0.62845111]
[1741002036142,0.00046028,92756.0,92755.0,0.63326445]
[1741002036919,0.00046028,92756.0,92755.0,0.55576445]
[1741002037675,0.00046028,92756.0,92755.0,0.51046445]
[1741002038997,0.00046028,92756.0,92755.0,0.51265111]
[1741002039624,2.8e-07,92756.0,92755.0,0.63985111]
[1741002039827,0.0003406,92785.0,92784.0,0.161665]
[1741002040024,0.00046079,92785.0,92784.0,0.17620585]
[1741002040322,0.00741568,92785.0,92784.0,0.17620585]
[1741002040842,0.00046079,92785.0,92784.0,0.18848687]
[1741002041231,0.00046079,92785.0,92784.0,0.19148687]
[1741002042731,0.00046079,92785.0,92784.0,0.19648687]
[1741002044474,0.00046079,92785.0,92784.0,0.19348687]
[1741002044650,0.00046079,92785.0,92784.0,0.18848687]
[1741002044859,0.00046079,92785.0,92784.0,0.19348687]
[1741002045458,0.00046079,92785.0,92784.0,0.20048687]
[1741002046196,0.00046079,92785.0,92784.0,0.18820585]
[1741002050260,0.00046079,92785.0,92784.0,0.173665]
[1741002054779,0.00046079,92785.0,92784.0,0.18820585]
[1741002056231,0.00046079,92785.0,92784.0,0.18971459]
[1741002056372,0.00046079,92785.0,92784.0,0.18971449]
[1741002056558,0.00046079,92785.0,92784.0,0.18820585]
[1741002060608,0.00046079,92785.0,92784.0,0.18320585]
[1741002060814,0.00046079,92785.0,92784.0,0.19020585]
[1741002061339,0.00046079,92785.0,92784.0,0.18320585]
[1741002061740,0.00046079,92785.0,92784.0,0.21031502]
[1741002063928,0.00046079,92785.0,92784.0,0.04865002]
[1741002064149,0.00046079,92785.0,92784.0,0.03410917]
[1741002064365,0.0074329,92785.0,92784.0,0.03410917]
[1741002064746,0.0074329,92785.0,92784.0,0.19577417]
[1741002065172,0.00046079,92785.0,92784.0,0.19577417]
[1741002065408,0.00046079,92785.0,92784.0,0.175665]